bitfinex-derivatives/quotes_SOLF0:USTF0_20260302
["timestamp","ask_amount","ask_price","bid_price","bid_amount"]
[1772485018024,0.55869493,87.866,87.817,3.74558835]
[1772485019126,3.31719238,87.87,87.819,3.74558835]
[1772485019431,3.31719238,87.87,87.821,3.74558835]
[1772485019930,10.24,87.875,87.831,13.99058835]
[1772485020324,0.57362643,87.869,87.817,3.74558835]
[1772485020530,0.57362643,87.859,87.817,3.74558835]
[1772485022129,0.57362643,87.859,87.781,20.502]
[1772485022130,3.31719238,87.85,87.803,3.74558835]
[1772485022928,0.57362643,87.858,87.811,3.74558835]
[1772485023118,3.31719238,87.85,87.811,3.74558835]
[1772485023731,3.31719238,87.85,87.813,10.247]
[1772485024131,3.31719238,87.87,87.814,3.74558835]
[1772485024331,0.56107418,87.859,87.815,10.247]
[1772485024629,0.56107418,87.859,87.816,3.74558835]
[1772485025025,3.31719238,87.85,87.816,3.74558835]
[1772485025431,0.56107418,87.859,87.817,10.247]
[1772485025730,13.55819238,87.87,87.818,3.74558835]
[1772485026226,3.31719238,87.86,87.82,13.99158835]
[1772485026427,3.31719238,87.86,87.82,3.74558835]
[1772485026428,10.242,87.859,87.82,3.74558835]
[1772485027527,10.243,87.851,87.82,3.74558835]
[1772485027727,3.31719238,87.86,87.82,3.74558835]
[1772485028822,3.31719238,87.86,87.821,10.246]
[1772485029629,3.31719238,87.85,87.805,3.74558835]
[1772485029828,3.31719238,87.86,87.811,3.74558835]
[1772485030233,3.31719238,87.86,87.825,10.246]
[1772485030627,3.31763027,87.86,87.825,10.246]
[1772485032424,3.31763027,87.86,87.832,10.245]
[1772485032732,3.31763027,87.87,87.823,3.74558835]
[1772485032935,0.53041474,87.869,87.823,3.74558835]
[1772485034331,11.39,87.917,87.798,10.50122501]
[1772485034332,3.31763027,87.88,87.825,3.74558835]
[1772485034732,0.51873395,87.879,87.825,3.74558835]
[1772485035035,0.51873395,87.869,87.825,3.74558835]
[1772485036237,0.51873395,87.869,87.832,10.245]
[1772485037037,3.31763027,87.86,87.825,3.74558835]
[1772485037333,3.31763027,87.87,87.825,3.74558835]
[1772485038336,3.31763027,87.87,87.828,3.87109516]
[1772485039237,3.31763027,87.88,87.838,3.87109516]
[1772485039536,3.31763027,87.87,87.838,3.87109516]
[1772485042232,3.31763027,87.87,87.839,10.244]
[1772485044446,3.31763027,87.87,87.84,3.87109516]
[1772485045137,3.31763027,87.87,87.841,10.244]
[1772485045740,3.31763027,87.87,87.844,10.244]
[1772485047446,3.31763027,87.87,87.847,3.87109516]
[1772485048344,3.31763027,87.86,87.815,3.87109516]
[1772485049042,3.31763027,87.87,87.829,3.87109516]
[1772485050338,3.31763027,87.87,87.838,10.244]
[1772485051844,14.05423722,87.87,87.83,3.87109516]
[1772485053050,3.31763027,87.88,87.839,3.87109516]
[1772485053350,3.79762018,87.88,87.839,3.87109516]
[1772485053650,3.31763027,87.87,87.839,3.87109516]
[1772485058445,10.241,87.869,87.839,3.87109516]
[1772485058846,3.31763027,87.87,87.839,3.87109516]
[1772485059049,10.24,87.875,87.839,3.87109516]
[1772485059250,3.76086103,87.87,87.825,3.87109516]
[1772485059557,20.474,87.905,87.825,3.87109516]
[1772485059558,3.31763027,87.86,87.825,3.87109516]
[1772485059758,0.44323076,87.862,87.825,3.87109516]
[1772485061660,10.241,87.866,87.827,3.87109516]
[1772485064757,0.41435884,87.865,87.827,3.87109516]
[1772485066057,3.31763027,87.86,87.827,3.87109516]
[1772485066257,3.31763027,87.84,87.803,3.87109516]
[1772485066461,3.31763027,87.83,87.803,3.87109516]
[1772485068364,10.66585256,87.839,87.803,3.87109516]
[1772485069368,10.245,87.835,87.803,3.87109516]
[1772485072870,0.44318683,87.838,87.803,3.87109516]
[1772485074362,10.245,87.837,87.803,3.87109516]
[1772485075968,10.244,87.845,87.803,3.87109516]
[1772485077374,3.31763027,87.84,87.803,3.87109516]
[1772485078473,3.31763027,87.84,87.805,3.73157071]
[1772485078674,10.244,87.845,87.805,3.73157071]
[1772485078872,10.244,87.839,87.805,3.73157071]
[1772485080272,10.245,87.833,87.792,3.73428579]
[1772485080473,3.74360112,87.85,87.792,3.73428579]
[1772485080675,0.42597085,87.849,87.801,3.73428579]
[1772485081585,3.31763027,87.86,87.812,3.73428579]
[1772485082074,14.18499345,87.896,87.791,492.0013594]
[1772485082075,10.58210697,87.896,87.831,3.73428579]
[1772485082278,0.43854076,87.937,87.881,3.72939851]
[1772485082472,3.65212909,87.899,87.84,3.31763027]
[1772485082668,3.31763027,87.89,87.84,3.31763027]
[1772485082868,3.31763027,87.89,87.84,13.56163027]
[1772485083067,10.238,87.893,87.84,13.56163027]
[1772485083575,3.31763027,87.89,87.847,10.243]
[1772485084380,3.31763027,87.89,87.848,3.72939851]
[1772485084770,13.89112909,87.885,87.84,3.31763027]
[1772485084970,1.98089687,87.925,87.834,3.72939851]
[1772485084971,3.31763027,87.88,87.834,3.72939851]
[1772485085173,3.65212909,87.884,87.836,3.72939851]
[1772485085369,10.242,87.861,87.821,3.72939851]
[1772485085571,6.96975936,87.87,87.821,3.72939851]
[1772485085882,6.96975936,87.87,87.823,3.72939851]
[1772485086877,3.31763027,87.86,87.823,3.72939851]
[1772485087275,3.31763027,87.85,87.811,3.72939851]
[1772485088384,3.65212909,87.849,87.796,3.72939851]
[1772485089075,3.31763027,87.84,87.796,3.72939851]
[1772485089682,3.31763027,87.83,87.791,492.0013594]
[1772485091686,3.31763027,87.83,87.793,10.249]
[1772485091981,3.31763027,87.83,87.793,13.97839851]
[1772485092284,3.31763027,87.83,87.793,3.72939851]
[1772485092479,3.65212909,87.839,87.793,3.72939851]
[1772485092678,3.32010933,87.83,87.793,3.72939851]
[1772485092879,3.65212909,87.853,87.793,3.72939851]
[1772485093079,3.32010933,87.84,87.793,3.72939851]
[1772485093384,3.32010933,87.83,87.793,3.72939851]
[1772485095183,3.32010933,87.83,87.794,13.97839851]
[1772485095387,3.32010933,87.83,87.794,3.72939851]
[1772485097286,3.32010933,87.82,87.791,492.0013594]
[1772485097487,3.32010933,87.82,87.781,3.69890033]
[1772485098190,3.32010933,87.82,87.783,3.90691802]
[1772485098390,3.88188983,87.829,87.783,3.90691802]
[1772485098792,10.246,87.827,87.783,3.90691802]
[1772485099686,3.64131738,87.826,87.783,3.90691802]
[1772485099888,3.64131738,87.826,87.785,3.90691802]
[1772485100084,3.64131738,87.839,87.785,3.90691802]
[1772485100394,3.64131738,87.839,87.791,3.90691802]
[1772485100793,3.64131738,87.839,87.796,10.249]
[1772485102192,3.64131738,87.864,87.814,3.90691802]
[1772485102496,20.473,87.909,87.814,3.90691802]
[1772485102497,3.64131738,87.859,87.814,3.90691802]
[1772485102694,3.64131738,87.845,87.801,3.90691802]
[1772485102894,3.64131738,87.839,87.787,3.90691802]
[1772485103593,3.64131738,87.839,87.78,3.32010933]
[1772485103790,20.482,87.869,87.695,159.622]
[1772485103791,3.64131738,87.819,87.774,3.90691802]
[1772485104392,3.64131738,87.819,87.776,3.90691802]
[1772485105997,3.64131738,87.833,87.786,3.90691802]
[1772485107303,3.64131738,87.829,87.786,3.90691802]
[1772485108202,10.246,87.825,87.786,3.90691802]
[1772485108495,3.64131738,87.829,87.786,3.90691802]
[1772485108903,3.32010933,87.84,87.801,3.90691802]
[1772485109302,6.96142671,87.84,87.801,3.90691802]
[1772485109998,3.64131738,87.839,87.801,3.90691802]
[1772485110199,3.64131738,87.839,87.802,10.248]
[1772485112309,3.64131738,87.819,87.764,10.50122501]
[1772485112503,3.64131738,87.819,87.764,3.90691802]
[1772485113206,3.64131738,87.819,87.778,10.251]
[1772485114000,3.32010933,87.83,87.787,3.90691802]
[1772485114201,3.64131738,87.836,87.787,3.90691802]
[1772485114709,3.64131738,87.836,87.789,3.90691802]
[1772485114710,3.32010933,87.83,87.789,3.90691802]
[1772485115206,3.32010933,87.83,87.78,3.32010933]
[1772485115207,6.96142671,87.85,87.816,10.247]
[1772485115406,3.32010933,87.86,87.816,10.247]
[1772485115597,3.32010933,87.86,87.811,3.90691802]
[1772485115801,3.64131738,87.865,87.811,3.90691802]
[1772485116007,3.64131738,87.865,87.823,3.90691802]
[1772485116204,3.32010933,87.86,87.823,3.90691802]
[1772485116799,3.32010933,87.86,87.815,10.247]
[1772485117407,3.32010933,87.83,87.783,10.50122501]
[1772485117705,3.32010933,87.82,87.78,3.90691802]
[1772485117904,10.58210697,87.868,87.78,3.90691802]
[1772485117905,3.32010933,87.83,87.78,3.90691802]
[1772485118110,3.32010933,87.83,87.799,3.90691802]
[1772485118306,3.32010933,87.84,87.799,3.90691802]
[1772485118808,3.32010933,87.83,87.799,3.90691802]
[1772485119805,3.32010933,87.83,87.753,13.92601754]
[1772485119806,3.32010933,87.82,87.771,3.90691802]
[1772485120007,3.32010933,87.81,87.771,3.90691802]
[1772485120612,3.32010933,87.8,87.754,3.90691802]
[1772485121312,3.64131738,87.809,87.754,3.90691802]
[1772485121513,3.32010933,87.81,87.754,3.90691802]
[1772485122310,3.32010933,87.81,87.774,10.252]
[1772485124409,3.32010933,87.81,87.761,3.90691802]
[1772485125219,3.32010933,87.81,87.774,10.252]
[1772485125408,3.32010933,87.81,87.761,3.90691802]
[1772485125812,3.32010933,87.81,87.772,10.252]
[1772485126513,3.64131738,87.799,87.764,10.253]
[1772485126713,3.64131738,87.799,87.746,3.90691802]
[1772485127111,3.32010933,87.79,87.746,3.90691802]
[1772485127714,3.32010933,87.79,87.747,10.255]
[1772485128311,13.57010933,87.79,87.746,3.90691802]
[1772485128508,3.32010933,87.78,87.746,3.90691802]
[1772485129115,13.57010933,87.79,87.746,3.90691802]
[1772485129315,3.68466052,87.789,87.746,3.90691802]
[1772485129515,3.32010933,87.78,87.746,3.90691802]
[1772485130112,3.53889266,87.769,87.72,3.81194885]
[1772485130422,3.32010933,87.76,87.72,3.81194885]
[1772485130618,3.53889266,87.759,87.706,3.81194885]
[1772485130914,3.53889266,87.759,87.672,1.98374809]
[1772485130915,3.32010933,87.73,87.688,3.81194885]
[1772485131116,3.32010933,87.72,87.669,3.81194885]
[1772485131317,3.32010933,87.71,87.669,3.81194885]
[1772485131516,3.32010933,87.72,87.669,3.81194885]
[1772485131711,3.53889266,87.719,87.669,3.81194885]
[1772485131911,3.32010933,87.69,87.647,3.81194885]
[1772485132112,3.32010933,87.68,87.647,3.81194885]
[1772485132313,3.32010933,87.69,87.647,3.81194885]
[1772485132622,3.1868004,87.723,87.661,3.81194885]
[1772485132924,3.1868004,87.723,87.675,3.81194885]
[1772485133221,3.32010933,87.72,87.675,3.81194885]
[1772485133720,3.32010933,87.73,87.681,3.81194885]
[1772485133914,6.50690973,87.74,87.681,3.81194885]
[1772485134109,3.32010933,87.76,87.713,3.81194885]
[1772485134519,6.73758635,87.75,87.691,3.81194885]
[1772485134711,3.32010933,87.75,87.705,3.81194885]
[1772485136222,3.32010933,87.75,87.707,10.26]
[1772485136619,3.32010933,87.76,87.71,3.32010933]
[1772485136918,3.32010933,87.75,87.711,3.81194885]
[1772485139119,3.32010933,87.75,87.712,10.259]
[1772485139723,3.32010933,87.76,87.721,10.258]
[1772485140425,3.32010933,87.75,87.695,3.81194885]
[1772485141026,3.67620817,87.699,87.621,3.81194885]
[1772485141325,3.32010933,87.69,87.641,3.81194885]
[1772485141827,3.32010933,87.7,87.665,10.264]
[1772485142027,3.32010933,87.7,87.641,3.81194885]
[1772485142221,3.32010933,87.69,87.645,10.267]
[1772485142418,20.507,87.763,87.641,3.81194885]
[1772485142621,3.68466052,87.715,87.641,3.81194885]
[1772485143230,3.68466052,87.709,87.658,3.81194885]
[1772485143528,3.68466052,87.689,87.611,3.81194885]
[1772485143723,3.68466052,87.737,87.651,3.81194885]
[1772485143923,3.68466052,87.759,87.671,3.81194885]
[1772485144426,3.68466052,87.749,87.68,3.81194885]
[1772485144824,3.68466052,87.749,87.65,8.92141237]
[1772485144825,3.68466052,87.73,87.66,3.81194885]
[1772485145230,3.68466052,87.689,87.627,3.81194885]
[1772485145424,3.68466052,87.669,87.591,3.81194885]
[1772485145625,12.60607289,87.65,87.591,3.81194885]
[1772485145823,3.68466052,87.688,87.629,3.81194885]
[1772485146023,3.68466052,87.709,87.629,3.81194885]
[1772485146526,3.65252651,87.707,87.629,3.81194885]
[1772485147022,3.65252651,87.705,87.645,10.267]
[1772485147229,3.65252651,87.719,87.631,3.81194885]
[1772485147528,3.65252651,87.717,87.653,10.266]
[1772485147728,3.65252651,87.717,87.631,3.81194885]
[1772485147925,3.65252651,87.649,87.571,3.81194885]
[1772485148628,3.65252651,87.649,87.599,10.272]
[1772485149123,20.517,87.719,87.55,8.92141237]
[1772485149124,3.68466052,87.692,87.611,3.81194885]
[1772485149624,3.68466052,87.679,87.611,3.81194885]
[1772485149831,3.68466052,87.677,87.611,14.08294885]
[1772485150026,3.68466052,87.659,87.591,3.81194885]
[1772485150227,3.68466052,87.658,87.591,3.81194885]
[1772485150431,3.68466052,87.679,87.591,3.81194885]
[1772485150729,3.68466052,87.679,87.601,3.81194885]
[1772485151123,3.68466052,87.698,87.64,10.267]
[1772485151326,3.68466052,87.698,87.625,3.81194885]
[1772485151327,3.68466052,87.72,87.625,3.81194885]
[1772485151525,3.68466052,87.719,87.625,3.81194885]
[1772485151725,3.68466052,87.699,87.625,3.81194885]
[1772485151922,3.68466052,87.698,87.625,3.81194885]
[1772485152125,10.4775885,87.787,87.625,3.81194885]
[1772485152126,3.68466052,87.719,87.625,3.81194885]
[1772485152527,10.258,87.717,87.658,10.265]
[1772485152727,3.68466052,87.719,87.658,10.265]
[1772485153031,3.68466052,87.74,87.668,3.81194885]
[1772485153826,3.68466052,87.74,87.683,3.81194885]
[1772485154030,8.92141237,87.75,87.683,3.81194885]
[1772485154426,10.256,87.74,87.683,3.81194885]
[1772485154629,3.68466052,87.759,87.683,3.81194885]
[1772485154830,3.68466052,87.719,87.643,3.81194885]
[1772485155027,3.68466052,87.737,87.663,3.81194885]
[1772485155228,3.68466052,87.756,87.671,3.81194885]
[1772485156131,3.68466052,87.756,87.686,10.262]
[1772485156326,3.68466052,87.756,87.67,8.91233367]
[1772485156327,3.68466052,87.756,87.687,3.81194885]
[1772485156827,3.58078395,87.753,87.687,3.81194885]
[1772485157125,3.58078395,87.753,87.685,10.262]
[1772485157126,3.58078395,87.739,87.666,3.82958434]
[1772485157331,3.58078395,87.779,87.691,3.82958434]
[1772485157935,3.68059045,87.759,87.691,3.82958434]
[1772485158432,8.91233367,87.78,87.691,3.82958434]
[1772485158829,8.91233367,87.78,87.722,10.258]
[1772485159228,3.68059045,87.802,87.708,3.90767648]
[1772485159427,3.68059045,87.802,87.679,159.651]
[1772485159428,3.68059045,87.802,87.731,3.90767648]
[1772485160030,8.91233367,87.81,87.746,3.90767648]
[1772485160330,3.68059045,87.789,87.708,3.90767648]
[1772485160532,8.91233367,87.84,87.708,3.90767648]
[1772485160533,3.68059045,87.769,87.708,3.90767648]
[1772485160730,3.68059045,87.766,87.708,3.90767648]
[1772485161329,8.91233367,87.77,87.708,3.90767648]
[1772485161533,3.68059045,87.769,87.688,3.90767648]
[1772485161836,3.68059045,87.729,87.658,3.90767648]
[1772485162134,3.68059045,87.729,87.678,10.263]
[1772485162337,8.91233367,87.71,87.621,3.90767648]
[1772485162635,8.91233367,87.71,87.664,10.265]
[1772485163028,8.91233367,87.71,87.646,3.90767648]
[1772485163538,3.68059045,87.709,87.646,3.90767648]
[1772485163934,3.68059045,87.719,87.646,3.90767648]
[1772485164134,8.91233367,87.74,87.646,3.90767648]
[1772485164329,3.68059045,87.739,87.646,3.90767648]
[1772485164632,3.68059045,87.759,87.674,3.90767648]
[1772485165336,3.68059045,87.747,87.674,3.90767648]
[1772485166038,3.68059045,87.769,87.674,3.90767648]
[1772485167240,3.68059045,87.779,87.702,3.90767648]
[1772485168239,3.68059045,87.761,87.671,3.90767648]
[1772485168438,3.68059045,87.739,87.65,3.90767648]
[1772485168739,8.91233367,87.78,87.654,10.266]
[1772485168740,10.259,87.713,87.654,10.266]
[1772485169132,3.68059045,87.719,87.65,3.90767648]
[1772485169734,8.91233367,87.74,87.65,3.90767648]
[1772485169932,3.68059045,87.739,87.651,3.90767648]
[1772485170338,3.68059045,87.749,87.669,10.264]
[1772485170737,3.68059045,87.749,87.651,3.90767648]
[1772485170942,3.68059045,87.748,87.688,10.262]
[1772485171143,3.68059045,87.748,87.672,3.90767648]
[1772485172043,12.59292412,87.77,87.681,3.90767648]
[1772485172244,3.68059045,87.769,87.681,3.90767648]
[1772485172542,3.68059045,87.764,87.681,3.90767648]
[1772485172931,8.91233367,87.77,87.681,3.90767648]
[1772485172932,3.68059045,87.754,87.698,10.261]
[1772485173136,8.91233367,87.75,87.698,10.261]
[1772485173337,3.68059045,87.754,87.698,10.261]
[1772485173734,3.68059045,87.754,87.681,3.90767648]
[1772485174037,3.68059045,87.769,87.681,3.90767648]
[1772485174433,3.68059045,87.767,87.681,3.90767648]
[1772485174633,8.91233367,87.77,87.681,3.90767648]
[1772485174837,8.91233367,87.77,87.646,3.90767648]
[1772485174838,3.68059045,87.739,87.646,3.90767648]
[1772485175035,3.68059045,87.739,87.682,10.263]
[1772485175234,8.91233367,87.7,87.631,3.90767648]
[1772485175446,8.91233367,87.68,87.587,3.90767648]
[1772485176039,10.261,87.7,87.606,3.90767648]
[1772485176245,8.91233367,87.7,87.606,3.90767648]
[1772485176444,8.91233367,87.68,87.606,3.90767648]
[1772485177138,3.68059045,87.678,87.563,3.90767648]
[1772485177344,3.68059045,87.659,87.563,3.90767648]
[1772485177647,3.68059045,87.659,87.6,10.272]
[1772485178243,3.68059045,87.659,87.595,3.90767648]
[1772485178842,3.68059045,87.659,87.608,10.271]
[1772485179044,8.91233367,87.68,87.609,3.90767648]
[1772485179344,3.68059045,87.709,87.64,3.90767648]
[1772485179544,3.68059045,87.709,87.618,3.90767648]
[1772485179740,3.68059045,87.709,87.621,3.90767648]
[1772485179940,3.68059045,87.709,87.644,3.90767648]
[1772485180142,8.91233367,87.72,87.644,3.90767648]
[1772485180448,12.59292412,87.72,87.644,3.90767648]
[1772485180644,3.68059045,87.719,87.644,3.90767648]
[1772485181239,3.68059045,87.699,87.621,3.90767648]
[1772485182145,3.68059045,87.699,87.639,10.268]
[1772485182348,3.68059045,87.669,87.592,3.90767648]
[1772485182544,3.68059045,87.669,87.62,10.27]
[1772485182741,8.91233367,87.67,87.62,10.27]
[1772485183048,8.91233367,87.67,87.611,3.90767648]
[1772485183247,3.68059045,87.689,87.611,3.90767648]
[1772485183746,10.262,87.687,87.611,3.90767648]
[1772485183951,3.68059045,87.709,87.611,3.90767648]
[1772485184347,10.261,87.699,87.627,14.17667648]
[1772485184951,10.262,87.689,87.627,3.90767648]
[1772485185147,8.91233367,87.69,87.627,3.90767648]
[1772485185352,3.68059045,87.709,87.627,3.90767648]
[1772485186151,3.68059045,87.709,87.638,3.90767648]
[1772485186152,8.91233367,87.7,87.638,3.90767648]
[1772485186454,3.68059045,87.699,87.638,3.90767648]
[1772485186952,8.91233367,87.69,87.611,3.90767648]
[1772485187347,12.59292412,87.68,87.591,3.90767648]
[1772485187752,3.9046848,87.679,87.591,3.90767648]
[1772485188354,8.91233367,87.72,87.591,3.90767648]
[1772485188355,12.81701847,87.66,87.591,3.90767648]
[1772485188553,3.9046848,87.659,87.591,3.90767648]
[1772485189052,3.9046848,87.678,87.601,3.71305561]
[1772485189249,8.91233367,87.65,87.561,3.71305561]
[1772485189454,3.9046848,87.649,87.561,3.71305561]
[1772485189951,10.267,87.648,87.561,3.71305561]
[1772485190155,8.91233367,87.67,87.581,3.71305561]
[1772485190457,3.9046848,87.669,87.581,3.71305561]
[1772485190659,8.91233367,87.65,87.581,3.71305561]
[1772485191255,8.91233367,87.65,87.592,10.273]
[1772485191958,19.17833367,87.65,87.582,10.274]
[1772485192258,10.267,87.648,87.583,3.71305561]
[1772485192459,3.9046848,87.647,87.583,3.71305561]
[1772485193555,3.9046848,87.629,87.541,3.71305561]
[1772485193860,3.9046848,87.629,87.562,3.71305561]
[1772485194057,3.9046848,87.691,87.562,3.71305561]
[1772485194258,10.268,87.638,87.574,10.275]
[1772485194450,3.9046848,87.637,87.562,3.71305561]
[1772485194957,8.91233367,87.62,87.528,3.71305561]
[1772485195159,3.9046848,87.629,87.528,3.71305561]
[1772485195360,3.9046848,87.569,87.493,10.44698875]
[1772485195654,8.91233367,87.6,87.491,3.71305561]
[1772485196058,3.9046848,87.599,87.524,3.71305561]
[1772485196658,10.273,87.595,87.525,10.281]
[1772485196864,10.273,87.595,87.525,13.99405561]
[1772485197058,10.272,87.598,87.535,10.28]
[1772485197462,3.9046848,87.599,87.535,3.71305561]
[1772485197662,3.9046848,87.619,87.535,3.71305561]
[1772485198261,3.9046848,87.619,87.541,3.71305561]
[1772485198765,8.91233367,87.64,87.561,3.71305561]
[1772485198958,159.602,87.707,87.503,159.973]
[1772485198959,3.9046848,87.589,87.504,3.71305561]
[1772485199159,8.91233367,87.62,87.531,3.71305561]
[1772485199358,10.27,87.62,87.536,3.71305561]
[1772485199558,3.9046848,87.62,87.536,3.71305561]
[1772485199763,8.91233367,87.63,87.553,3.71305561]
[1772485200067,3.9046848,87.653,87.501,3.71305561]
[1772485200259,8.91233367,87.62,87.544,3.71305561]
[1772485200464,8.91233367,87.66,87.544,3.71305561]
[1772485200465,3.9046848,87.609,87.544,3.71305561]
[1772485200760,3.9046848,87.631,87.558,10.277]
[1772485201066,3.9046848,87.631,87.551,3.71305561]
[1772485201455,3.9046848,87.631,87.563,3.71305561]
[1772485201856,3.9046848,87.619,87.541,3.71305561]
[1772485202063,10.273,87.595,87.521,3.71305561]
[1772485202457,10.274,87.585,87.521,3.71305561]
[1772485203765,10.275,87.572,87.502,3.71305561]
[1772485204566,3.9046848,87.576,87.502,3.71305561]
[1772485204763,3.9046848,87.597,87.515,3.71305561]
[1772485204963,3.9046848,87.597,87.491,3.71305561]
[1772485205164,3.9046848,87.572,87.491,3.71305561]
[1772485205371,3.9046848,87.559,87.471,3.71305561]
[1772485205563,10.281,87.527,87.471,3.71305561]
[1772485205757,3.9046848,87.519,87.466,0.00017035]
[1772485206157,3.9046848,87.504,87.466,0.00017035]
[1772485206668,3.9046848,87.499,87.401,3.71305561]
[1772485207262,159.917,87.535,87.401,3.71305561]
[1772485207263,8.91233367,87.48,87.409,10.295]
[1772485207464,3.9046848,87.499,87.41,3.71305561]
[1772485207858,10.287,87.478,87.411,10.294]
[1772485208272,132.91233367,87.5,87.41,3.71305561]
[1772485208273,3.9046848,87.477,87.41,3.71305561]
[1772485208471,10.288,87.463,87.389,10.297]
[1772485208664,3.9046848,87.477,87.39,3.71305561]
[1772485209064,3.9046848,87.452,87.369,3.71305561]
[1772485210469,3.9046848,87.437,87.369,3.71305561]
[1772485211267,3.9046848,87.419,87.329,3.71305561]
[1772485211467,8.91233367,87.42,87.329,3.71305561]
[1772485211468,3.9046848,87.417,87.329,3.71305561]
[1772485211672,3.9046848,87.379,87.299,3.71305561]
[1772485212369,10.301,87.355,87.299,3.71305561]
[1772485212567,3.9046848,87.399,87.299,3.71305561]
[1772485212876,3.9046848,87.386,87.299,3.71305561]
[1772485213071,3.9046848,87.408,87.311,3.71305561]
[1772485213370,3.9046848,87.436,87.351,3.71305561]
[1772485213674,10.292,87.435,87.357,3.71305561]
[1772485213975,3.9046848,87.434,87.357,3.71305561]
[1772485214269,3.9046848,87.419,87.311,3.71305561]
[1772485214470,3.9046848,87.399,87.311,3.71305561]
[1772485214673,3.9046848,87.397,87.315,3.71305561]
[1772485215070,3.9046848,87.379,87.294,3.71305561]
[1772485215274,10.299,87.37,87.294,3.71305561]
[1772485216072,3.9046848,87.374,87.294,3.71305561]
[1772485216470,3.9046848,87.367,87.294,3.71305561]
[1772485217071,8.98548518,87.4,87.311,3.60380432]
[1772485217276,3.80744404,87.399,87.311,3.60380432]
[1772485217477,10.297,87.386,87.311,3.60380432]
[1772485217872,3.80744404,87.399,87.311,3.60380432]
[1772485218074,14.10344404,87.399,87.313,10.306]
[1772485218269,14.10344404,87.399,87.314,3.63260063]
[1772485218475,3.75425553,87.398,87.314,3.63260063]
[1772485218679,3.75425553,87.389,87.314,3.63260063]
[1772485219080,10.299,87.376,87.314,3.63260063]
[1772485219282,3.75425553,87.389,87.314,3.63260063]
[1772485219774,14.05125553,87.389,87.316,10.306]
[1772485219978,14.05125553,87.389,87.317,3.63260063]
[1772485220883,10.298,87.378,87.317,3.63260063]
[1772485221277,3.75425553,87.389,87.317,3.63260063]
[1772485221581,14.05125553,87.389,87.317,3.63260063]
[1772485222078,10.298,87.377,87.317,3.63260063]
[1772485222782,10.297,87.389,87.318,3.63260063]
[1772485222987,3.75425553,87.408,87.318,3.63260063]
[1772485223381,3.75425553,87.388,87.261,3.63260063]
[1772485223784,3.75425553,87.388,87.269,3.63260063]
[1772485223986,3.75425553,87.388,87.305,13.93960063]
[1772485224283,3.75425553,87.388,87.253,160.43]
[1772485224284,3.75425553,87.388,87.253,3.63260063]
[1772485224486,10.302,87.349,87.278,3.63260063]
[1772485224688,3.75425553,87.356,87.278,3.63260063]
[1772485225081,3.75425553,87.344,87.278,3.63260063]
[1772485225484,160.126,87.42,87.23,34.40054698]
[1772485225485,3.75425553,87.397,87.301,3.63260063]
[1772485225690,10.299,87.369,87.302,10.307]
[1772485225883,3.75425553,87.368,87.301,3.63260063]
[1772485226593,3.75425553,87.368,87.311,10.306]
[1772485226789,3.75425553,87.368,87.301,3.63260063]
[1772485227392,34.40054698,87.4,87.301,3.63260063]
[1772485227984,3.75425553,87.408,87.301,3.63260063]
[1772485228282,3.75425553,87.408,87.288,5.1524492]
[1772485228283,3.75425553,87.408,87.327,3.63260063]
[1772485228481,3.75425553,87.428,87.327,3.63260063]
[1772485228886,3.75425553,87.428,87.353,3.63260063]
[1772485229490,20.571,87.489,87.366,3.63260063]
[1772485229491,3.75425553,87.459,87.366,3.63260063]
[1772485230394,10.293,87.425,87.366,3.63260063]
[1772485231092,10.295,87.41,87.366,3.63260063]
[1772485231494,3.75425553,87.435,87.366,3.63260063]
[1772485232295,3.75425553,87.4,87.326,10.304]
[1772485232495,3.75425553,87.4,87.327,3.63260063]
[1772485233294,3.75425553,87.4,87.33,3.63260063]
[1772485233897,10.296,87.399,87.34,10.303]
[1772485234093,3.75425553,87.422,87.33,3.63260063]
[1772485234698,3.75425553,87.422,87.34,3.63260063]
[1772485235197,3.75425553,87.422,87.3,34.40054698]
[1772485235198,3.75425553,87.422,87.341,13.93560063]
[1772485235393,3.75425553,87.422,87.341,3.63260063]
[1772485235896,10.297,87.387,87.341,3.63260063]
[1772485236291,3.75425553,87.404,87.341,3.63260063]
[1772485236694,3.75425553,87.404,87.318,3.63260063]
[1772485237194,3.75425553,87.404,87.331,3.63260063]
[1772485237796,3.75425553,87.404,87.345,3.63260063]
[1772485238597,3.75425553,87.404,87.308,5.15058832]
[1772485238598,3.75425553,87.428,87.347,3.63260063]
[1772485239794,3.75425553,87.428,87.355,3.63260063]
[1772485240707,3.75425553,87.428,87.357,3.63260063]
[1772485241304,10.293,87.419,87.359,3.63260063]
[1772485241805,3.75425553,87.562,87.445,3.63260063]
[1772485242007,3.75425553,87.499,87.345,3.63260063]
[1772485242301,3.75425553,87.479,87.359,3.63260063]